bitfinex/quotes_SOLUSD_20250819
["timestamp","ask_amount","ask_price","bid_price","bid_amount"]
[1755638706392,0.03,178.83,178.82,13.59559401]
[1755638706675,0.03,178.83,178.82,13.73775558]
[1755638706966,0.03,178.83,178.81,39.9]
[1755638706967,0.7,178.83,178.81,0.06]
[1755638707171,0.7,178.83,178.82,53.41559401]
[1755638708976,0.7,178.83,178.82,39.82]
[1755638711297,0.7,178.83,178.82,50.98239653]
[1755638711447,0.7,178.83,178.82,11.16239653]
[1755638711650,0.03,178.83,178.82,25.57015211]
[1755638711957,0.03,178.83,178.82,52.12937367]
[1755638712168,0.03,178.83,178.82,51.57015211]
[1755638712752,0.7,178.83,178.82,24.75799054]
[1755638713152,0.03,178.83,178.82,24.75799054]
[1755638714376,0.7,178.83,178.82,24.75799054]
[1755638717189,0.03,178.83,178.82,24.75799054]
[1755638719283,0.03,178.83,178.82,25.57015211]
[1755638720108,0.03,178.83,178.82,51.57015211]
[1755638721463,0.03,178.83,178.82,50.90015211]
[1755638722898,0.03,178.83,178.82,51.57015211]
[1755638730278,0.03,178.83,178.82,50.90015211]
[1755638731497,0.03,178.83,178.82,51.57015211]
[1755638736002,0.7,178.83,178.82,24.90015211]
[1755638737679,0.03,178.83,178.82,24.90015211]
[1755638737880,0.03,178.83,178.82,25.62015211]
[1755638738700,0.03,178.83,178.82,24.90015211]
[1755638740103,0.7,178.83,178.82,24.90015211]
[1755638740690,0.03,178.83,178.82,24.90015211]
[1755638741102,0.7,178.83,178.82,24.90015211]
[1755638742425,0.7,178.83,178.81,0.06]
[1755638742712,4.46512783,178.83,178.81,0.06]
[1755638742885,0.7,178.83,178.81,0.06]
[1755638743078,0.67,178.82,178.81,0.06]
[1755638743276,0.67,178.82,178.81,11.22239653]
[1755638746785,0.67,178.82,178.81,0.06]
[1755638746979,4.43512783,178.82,178.81,0.06]
[1755638748202,0.67,178.82,178.81,0.06]
[1755638748509,4.43512783,178.82,178.81,0.06]
[1755638749324,0.67,178.82,178.81,0.06]
[1755638750615,4.43512783,178.82,178.81,0.06]
[1755638751217,0.67,178.82,178.81,0.06]
[1755638752136,0.67,178.82,178.81,11.22239653]
[1755638752511,0.67,178.82,178.81,0.06]
[1755638753140,0.67,178.82,178.81,11.22239653]
[1755638754245,0.67,178.82,178.81,0.06]
[1755638754447,0.67,178.82,178.81,11.22239653]
[1755638756439,0.67,178.82,178.81,0.06]
[1755638756740,0.67,178.82,178.81,11.22239653]
[1755638757457,3.79512783,178.83,178.81,11.22239653]
[1755638757458,0.03,178.83,178.81,11.22239653]
[1755638757733,0.03,178.83,178.81,0.06]
[1755638757934,0.67,178.82,178.81,11.22239653]
[1755638758516,0.67,178.82,178.81,0.06]
[1755638758942,0.67,178.82,178.81,11.22239653]
[1755638759638,3.79486342,178.83,178.81,11.94239653]
[1755638759833,0.03,178.83,178.82,11.16239653]
[1755638760618,0.03,178.83,178.82,25.47799054]
[1755638767728,0.03,178.83,178.82,51.62015211]
[1755638767942,0.03,178.83,178.82,25.62015211]
[1755638769030,0.03,178.83,178.82,51.62015211]
[1755638769460,0.03,178.83,178.82,53.86148811]
[1755638769656,0.03,178.83,178.82,93.64148811]
[1755638772155,0.03,178.85,178.82,93.64148811]
[1755638772334,0.03,178.85,178.84,13.59559401]
[1755638772541,0.03,178.85,178.84,24.75799054]
[1755638772749,0.03,178.85,178.84,25.43799054]
[1755638775168,0.03,178.86,178.84,25.43799054]
[1755638775336,0.03,178.86,178.85,25.43799054]
[1755638777051,0.03,178.86,178.85,65.19799054]
[1755638777459,0.03,178.86,178.85,65.34015211]
[1755638777764,0.03,178.87,178.86,11.16239653]
[1755638777959,0.03,178.9,178.86,11.16239653]
[1755638777960,0.03,178.9,178.86,25.43799054]
[1755638778161,0.03,178.9,178.89,24.75799054]
[1755638778467,0.75,178.9,178.89,24.75799054]
[1755638781763,0.75,178.9,178.89,13.59559401]
[1755638781957,0.75,178.9,178.89,11.16239653]
[1755638783460,0.75,178.9,178.88,11.16239653]
[1755638783647,0.75,178.9,178.87,11.16239653]
[1755638784567,65.76,178.89,178.84,11.16239653]
[1755638784764,65.76,178.89,178.83,16.809077]
[1755638784765,4.47813057,178.88,178.83,11.16239653]
[1755638785069,0.72,178.87,178.83,11.16239653]
[1755638785463,11.88239653,178.87,178.81,11.22239653]
[1755638785667,11.16239653,178.86,178.81,0.06]
[1755638785962,11.88239653,178.86,178.81,0.06]
[1755638786162,11.16239653,178.86,178.81,0.06]
[1755638786471,0.72,178.85,178.81,0.06]
[1755638787156,0.72,178.85,178.81,11.22239653]
[1755638788039,0.72,178.85,178.82,11.16239653]
[1755638788442,0.72,178.85,178.81,0.06]
[1755638788868,40.48,178.85,178.81,0.06]
[1755638789055,11.88239653,178.84,178.81,0.06]
[1755638789250,11.16239653,178.83,178.81,0.06]
[1755638789458,0.72,178.83,178.81,0.06]
[1755638789673,0.72,178.82,178.81,0.06]
[1755638789879,3.7588295,178.84,178.81,0.06]
[1755638790077,0.72,178.83,178.81,11.22239653]
[1755638790685,40.48,178.85,178.82,11.16239653]
[1755638790905,39.76,178.85,178.83,11.16239653]
[1755638791075,0.72,178.84,178.83,11.16239653]
[1755638791275,39.76,178.85,178.83,11.16239653]
[1755638791461,39.76,178.85,178.84,11.16239653]
[1755638791778,40.48,178.85,178.83,11.16239653]
[1755638792372,0.72,178.84,178.82,11.16239653]
[1755638793185,39.76,178.85,178.83,11.16239653]
[1755638793369,39.76,178.85,178.84,11.84239653]
[1755638793571,39.76,178.85,178.84,11.16239653]
[1755638794974,130.6,178.87,178.84,11.16239653]
[1755638795176,39.86,178.87,178.86,11.16239653]
[1755638795371,39.86,178.89,178.86,11.16239653]
[1755638795570,40.58,178.89,178.88,11.16239653]
[1755638795772,44.33897699,178.89,178.88,11.16239653]
[1755638796566,39.86,178.89,178.88,11.16239653]
[1755638797192,0.03,178.9,178.88,11.87239653]
[1755638797505,0.03,178.9,178.89,11.16239653]
[1755638797991,0.03,178.9,178.89,11.87239653]
[1755638803017,0.03,178.9,178.89,11.16239653]
[1755638804720,0.03,178.9,178.89,11.87239653]
[1755638806507,0.03,178.9,178.89,25.46799054]
[1755638812303,0.03,178.9,178.89,14.30559401]
[1755638812503,0.03,178.9,178.89,11.16239653]
[1755638812712,0.75,178.9,178.89,11.16239653]
[1755638813714,0.75,178.9,178.88,11.16239653]
[1755638813931,0.72,178.89,178.86,13.59559401]
[1755638814295,0.03,178.9,178.86,14.30559401]
[1755638814495,0.03,178.9,178.86,13.59559401]
[1755638814710,0.75,178.9,178.86,14.30559401]
[1755638815206,0.75,178.9,178.89,11.16239653]
[1755638817520,0.03,178.9,178.89,11.16239653]
[1755638817712,0.75,178.9,178.87,0.71]
[1755638817917,0.75,178.9,178.89,11.16239653]
[1755638818292,0.03,178.9,178.89,11.16239653]
[1755638820331,0.75,178.9,178.89,11.16239653]
[1755638822726,0.03,178.9,178.89,11.16239653]
[1755638823416,0.75,178.9,178.89,11.16239653]
[1755638823820,0.03,178.9,178.89,11.16239653]
[1755638825923,0.72,178.9,178.89,11.16239653]
[1755638829637,0.03,178.9,178.89,11.16239653]
[1755638829844,0.03,178.9,178.89,11.87239653]
[1755638832826,0.03,178.9,178.89,25.46799054]
[1755638833920,0.03,178.92,178.9,13.59559401]
[1755638834130,0.03,178.92,178.91,11.16239653]
[1755638834322,0.03,178.92,178.91,11.87239653]
[1755638835726,0.03,178.92,178.91,25.46799054]
[1755638839951,0.72,178.92,178.91,11.16239653]
[1755638840250,0.03,178.92,178.91,11.16239653]
[1755638841848,0.72,178.92,178.91,11.16239653]
[1755638842351,0.03,178.92,178.91,11.87239653]
[1755638845874,0.03,178.92,178.91,25.46799054]
[1755638848159,0.03,178.92,178.91,51.61015211]
[1755638848352,0.03,178.92,178.91,91.35015211]
[1755638851038,0.03,178.95,178.92,13.73775558]
[1755638851343,0.03,178.96,178.95,24.75799054]
[1755638851773,0.03,178.96,178.95,25.46799054]
[1755638853249,0.03,178.96,178.95,25.61015211]
[1755638854762,0.03,178.99,178.96,13.73775558]
[1755638854941,0.03,178.99,178.97,51.0245581]
[1755638855144,0.03,178.99,178.97,51.6845581]
[1755638861770,0.03,178.99,178.97,65.28015211]
[1755638861944,0.03,178.99,178.98,39.59559401]
[1755638862150,0.03,178.99,178.98,51.41799054]
[1755638862351,0.03,178.99,178.98,53.65706754]
[1755638863877,0.03,179.02,179.01,39.59559401]
[1755638864058,0.72,179.07,179.02,0.14216157]
[1755638864257,0.72,179.07,179.01,90.62015211]
[1755638864258,0.72,179.07,179.06,11.16239653]
[1755638865272,0.72,179.07,179.03,11.16239653]
[1755638865570,0.72,179.07,179.04,11.16239653]
[1755638867774,0.72,179.07,179.02,50.88239653]
[1755638868490,11.88239653,179.07,179.02,39.72]
[1755638868674,11.16239653,179.06,179.0,11.16239653]
[1755638868982,0.69,179.05,179.02,11.16239653]
[1755638869162,0.69,179.05,179.01,11.16239653]
[1755638871070,0.69,179.05,179.02,11.16239653]
[1755638872175,0.69,179.04,179.02,11.16239653]
[1755638872582,0.69,179.06,179.03,11.16239653]
[1755638872768,0.69,179.06,179.05,11.16239653]
[1755638873473,0.69,179.06,179.04,11.16239653]
[1755638873677,0.03,179.07,179.04,11.16239653]
[1755638873981,0.69,179.05,179.04,11.16239653]
[1755638875456,0.03,179.07,179.04,11.16239653]
[1755638875782,0.69,179.06,179.04,11.16239653]
[1755638876083,0.69,179.05,179.04,11.16239653]
[1755638877893,0.69,179.05,179.02,11.16239653]
[1755638878269,14.94208212,179.07,179.02,11.16239653]
[1755638878472,0.69,179.04,179.02,11.16239653]
[1755638878789,0.69,179.06,179.02,11.16239653]
[1755638878990,3.77968559,179.07,179.02,11.16239653]
[1755638879185,0.69,179.05,179.02,11.16239653]
[1755638879760,3.77968559,179.07,179.03,11.82239653]
[1755638879974,4.46968559,179.07,179.04,11.16239653]
[1755638880189,0.69,179.06,179.04,11.16239653]
[1755638882191,0.03,179.07,179.03,11.16239653]
[1755638882377,0.03,179.07,179.03,11.82239653]
[1755638882699,0.72,179.07,179.03,11.82239653]
[1755638883192,0.72,179.07,179.03,11.16239653]
[1755638883398,0.72,179.07,179.04,0.66]
[1755638884858,0.03,179.07,179.06,11.16239653]
[1755638887187,0.75,179.07,179.05,11.16239653]
[1755638887360,0.75,179.07,179.04,11.16239653]
[1755638888698,0.75,179.07,179.03,37.83239653]
[1755638889300,0.75,179.07,179.03,11.83239653]
[1755638890096,0.75,179.07,179.03,0.67]
[1755638890296,0.72,179.06,179.01,11.16239653]
[1755638890503,14.94885317,179.07,179.01,11.83239653]
[1755638890794,11.16239653,179.05,179.01,0.67]
[1755638891166,11.16239653,179.06,179.01,0.67]
[1755638891369,0.72,179.05,179.01,0.67]
[1755638892381,14.91885317,179.06,179.01,0.67]
[1755638892662,0.72,179.06,179.02,0.67]
[1755638893199,4.47645664,179.06,179.02,0.67]
[1755638893881,3.78645664,179.07,179.04,11.16239653]
[1755638894105,3.78645664,179.07,179.05,11.83239653]
[1755638894406,3.78645664,179.07,179.05,0.67]
[1755638894602,3.78645664,179.07,179.05,11.83239653]
[1755638894817,3.78645664,179.07,179.05,0.67]
[1755638896400,3.78645664,179.07,179.06,0.67]
[1755638896603,3.78645664,179.07,179.06,11.83239653]
[1755638897418,0.03,179.07,179.06,11.83239653]
[1755638898325,3.78645664,179.07,179.06,11.83239653]
[1755638899317,3.78645664,179.07,179.04,0.67]
[1755638899522,3.78645664,179.07,179.05,11.83239653]
[1755638904334,3.78645664,179.07,179.06,0.67]
[1755638906203,3.78645664,179.07,179.06,11.83239653]
[1755638906924,0.03,179.07,179.06,11.83239653]
[1755638908236,0.03,179.07,179.06,25.42799054]
[1755638919469,0.03,179.07,179.06,27.66644154]
[1755638921799,0.03,179.07,179.06,53.66644154]
[1755638922291,0.03,179.07,179.06,42.50404501]
[1755638922477,0.03,179.07,179.06,53.66644154]
[1755638925197,0.03,179.07,179.06,27.66644154]
[1755638930295,0.03,179.07,179.06,21.0834779]
[1755638932504,0.03,179.07,179.06,21.22563947]
[1755638940501,0.03,179.07,179.06,60.84563947]
[1755638944307,0.1,179.08,179.07,44.31718847]
[1755638944504,0.1,179.08,179.07,44.99718847]
[1755638945108,0.03,179.09,179.07,44.99718847]
[1755638945422,0.03,179.09,179.08,14.27559401]
[1755638945790,0.03,179.09,179.08,16.51341801]
[1755638946413,0.03,179.09,179.08,21.0928509]
[1755638948017,0.03,179.11,179.1,13.59559401]
[1755638948220,0.03,179.11,179.1,83.7950269]
[1755638948518,0.03,179.11,179.1,84.4750269]
[1755638948700,0.03,179.11,179.1,86.7126009]
[1755638949303,1.33333333,179.14,179.12,13.73775558]
[1755638949514,1.33333333,179.14,179.12,57.93718847]
[1755638949726,1.33333333,179.14,179.12,58.61718847]
[1755638950598,1.33333333,179.14,179.13,13.59559401]
[1755638950814,1.33333333,179.14,179.13,18.8550269]
[1755638951827,0.66,179.19,179.13,18.99718847]
[1755638952055,0.66,179.19,179.18,18.1750269]
[1755638952214,0.66,179.19,179.18,57.7750269]
[1755638952407,0.66,179.19,179.18,60.34033415]
[1755638952726,0.66,179.21,179.19,13.59559401]
[1755638952921,0.66,179.21,179.2,20.74033415]
[1755638955105,7.80474014,179.21,179.2,16.776178]
[1755638955304,7.80474014,179.21,179.15,13.59559401]
[1755638955620,7.14474014,179.19,179.15,39.6]
[1755638955824,0.66,179.18,179.15,39.6]
[1755638956032,0.66,179.18,179.17,20.74033415]
[1755638958113,0.66,179.18,179.17,37.51838815]
[1755638958321,0.66,179.18,179.17,77.11838815]
[1755638958527,7.14474014,179.23,179.18,13.59559401]
[1755638958716,0.66,179.19,179.18,13.59559401]
[1755638959433,0.66,179.19,179.18,20.74033415]
[1755638960832,0.66,179.19,179.18,13.59559401]
[1755638963931,7.80474014,179.19,179.17,16.778054]
[1755638964124,7.14474014,179.19,179.16,13.59559401]
[1755638964307,0.66,179.18,179.16,13.59559401]
[1755638964903,0.66,179.19,179.16,20.74033415]
[1755638965209,0.66,179.19,179.16,21.42033415]
[1755638965518,0.66,179.19,179.16,20.74033415]
[1755638965717,0.66,179.18,179.16,20.74033415]
[1755638967938,26.0,179.24,179.16,13.59559401]
[1755638967939,0.66,179.17,179.16,13.59559401]
[1755638968116,0.66,179.17,179.15,56.358054]
[1755638968317,0.66,179.16,179.15,69.95364801]
[1755638968528,0.66,179.16,179.15,39.58]
[1755638970435,0.66,179.16,179.14,7.14474]
[1755638970640,0.66,179.16,179.14,13.59559401]
[1755638970942,0.66,179.16,179.14,30.37740301]
[1755638975249,0.66,179.16,179.14,56.37740301]
[1755638975447,0.72,179.17,179.16,26.0]
[1755638975622,0.72,179.17,179.14,56.37740301]
[1755638977052,5.29660428,179.17,179.14,56.37740301]
[1755638977247,5.29660428,179.17,179.14,39.59559401]
[1755638977432,5.29660428,179.17,179.14,40.30559401]
[1755638978046,4.57660428,179.17,179.14,40.30559401]
[1755638978352,0.72,179.18,179.15,0.71]
[1755638978353,5.29660428,179.18,179.15,0.71]
[1755638980423,4.57660428,179.18,179.14,13.59559401]
[1755638980627,4.57660428,179.18,179.16,0.71]
[1755638981032,4.57660428,179.18,179.14,13.59559401]
[1755638981231,5.29660428,179.18,179.15,0.71]
[1755638982835,0.72,179.18,179.15,0.71]
[1755638983041,4.57660428,179.19,179.16,0.71]
[1755638983437,5.29660428,179.19,179.16,0.71]
[1755638983935,0.72,179.19,179.16,0.71]
[1755638984150,5.29660428,179.19,179.16,0.71]
[1755638984454,4.57660428,179.21,179.17,13.59559401]
[1755638984755,5.29660428,179.21,179.18,0.71]
[1755638985530,4.57660428,179.21,179.17,13.59559401]
[1755638985845,0.72,179.2,179.17,14.30559401]
[1755638986460,0.72,179.21,179.17,13.59559401]
[1755638986662,4.60660428,179.22,179.18,0.71]
[1755638986864,5.32660428,179.22,179.17,18.17219829]
[1755638987041,4.60660428,179.22,179.17,18.17219829]
[1755638987362,0.72,179.21,179.18,0.71]
[1755638993866,5.29660428,179.21,179.18,0.71]
[1755638995642,8.37136925,179.22,179.19,0.71]
[1755638995838,4.57660428,179.21,179.17,14.30559401]
[1755638996044,5.29660428,179.21,179.18,0.71]
[1755639000361,0.72,179.21,179.18,0.71]
[1755639000555,5.29660428,179.21,179.18,0.71]
[1755639001369,4.60660428,179.22,179.19,0.71]
[1755639001550,9.09194297,179.22,179.19,0.71]
[1755639001752,5.32660428,179.22,179.19,0.71]
[1755639001950,3.79533869,179.22,179.19,13.59559401]
[1755639002265,0.03,179.22,179.2,0.71]
[1755639002447,3.79533869,179.22,179.2,0.71]
[1755639004259,0.03,179.22,179.19,13.59559401]
[1755639004570,0.73,179.22,179.19,14.26559401]
[1755639008865,0.7,179.21,179.17,0.67]
[1755639009062,5.27660428,179.21,179.18,13.59559401]
[1755639009274,5.27660428,179.21,179.18,14.26559401]
[1755639009451,0.7,179.21,179.18,14.26559401]
[1755639009855,5.27660428,179.21,179.18,14.26559401]
[1755639010776,5.27660428,179.21,179.15,13.59559401]
[1755639010777,4.57660428,179.19,179.15,13.59559401]
[1755639010987,4.57660428,179.16,179.15,13.59559401]
[1755639011469,5.27660428,179.16,179.14,13.59559401]
[1755639012054,4.57660428,179.15,179.13,5.56198308]
[1755639012375,3.76533869,179.21,179.1,0.73]
[1755639012376,5.27660428,179.14,179.1,0.73]
[1755639012671,39.52,179.19,179.11,13.59559401]
[1755639012672,0.7,179.13,179.11,13.59559401]
[1755639012859,0.7,179.13,179.1,13.65559401]
[1755639013679,4.57660428,179.11,179.1,13.65559401]
[1755639013871,4.57660428,179.11,179.1,0.06]
[1755639013872,5.27660428,179.11,179.1,0.06]
[1755639014272,0.7,179.11,179.1,0.06]
[1755639014482,7.85810357,179.11,179.1,0.06]
[1755639018281,7.85810357,179.11,179.02,0.67]
[1755639018282,11.61677416,179.11,179.02,0.67]
[1755639018583,7.15810357,179.03,179.0,19.92151775]
[1755639018751,7.15810357,179.01,178.99,13.59559401]
[1755639018959,7.15810357,179.01,178.98,0.73]
[1755639019162,7.85810357,179.01,178.98,0.06]
[1755639019458,7.15810357,179.0,178.98,0.73]
[1755639019791,7.85810357,179.01,178.98,0.73]
[1755639020156,7.85810357,179.0,178.98,0.06]
[1755639020863,7.15810357,179.0,178.98,0.06]
[1755639021194,7.85810357,179.0,178.98,0.06]
[1755639021685,26.7,179.06,179.0,13.59559401]
[1755639021854,7.85810357,179.05,179.0,13.59559401]
[1755639022050,7.85810357,179.04,179.0,0.67]
[1755639022495,26.0,179.06,179.01,0.67]
[1755639022496,7.15810357,179.05,179.01,0.67]
[1755639022688,33.15810357,179.06,179.01,0.67]
[1755639022872,33.85810357,179.06,179.0,7.15810357]
[1755639023076,33.85810357,179.06,179.02,0.67]
[1755639023278,0.7,179.05,179.02,0.67]
[1755639023478,39.52,179.07,179.03,0.67]
[1755639023479,40.22,179.07,179.03,0.67]
[1755639023701,40.22,179.07,179.03,7.15810357]
[1755639023997,40.22,179.07,179.04,0.67]
[1755639024387,40.22,179.07,179.03,7.15810357]
[1755639024703,7.15810357,179.06,179.03,0.67]
[1755639025014,39.52,179.07,178.99,13.59559401]
[1755639025015,7.15810357,179.04,178.99,13.59559401]
[1755639025296,7.85810357,179.03,178.99,13.59559401]
[1755639025474,0.7,179.02,178.99,13.59559401]
[1755639026766,7.15810357,179.02,178.99,0.67]
[1755639027487,7.15810357,179.02,178.98,0.06]
[1755639027683,7.85810357,179.01,178.98,0.06]
[1755639027877,7.15810357,179.02,178.98,0.73]
[1755639028081,7.15810357,179.0,178.98,0.06]
[1755639028780,7.85810357,179.0,178.98,0.06]
[1755639030001,7.85810357,178.99,178.98,0.06]
[1755639030206,26.0,179.03,178.98,0.06]
[1755639030506,33.15810357,179.03,178.99,0.67]
[1755639030802,7.15810357,179.02,178.99,0.67]
[1755639031010,7.15810357,179.0,178.98,0.06]
[1755639031196,7.15810357,178.99,178.98,0.06]
[1755639031578,7.85810357,178.99,178.98,0.06]
[1755639033106,47.37810357,178.99,178.98,0.06]
[1755639035000,40.22,178.99,178.98,0.06]
[1755639035193,47.37810357,178.99,178.98,0.06]
[1755639035876,39.52,178.99,178.98,0.06]
[1755639036077,131.0,179.03,178.98,0.75]
[1755639036284,178.38810357,179.03,178.99,0.69]
[1755639036691,7.86810357,179.02,178.98,0.06]
[1755639037009,7.86810357,179.02,178.98,0.75]
[1755639037393,7.15810357,179.01,178.98,0.75]
[1755639038094,0.71,179.02,178.98,7.90810357]
[1755639039013,170.52,179.03,178.98,0.06]
[1755639039014,7.15810357,179.0,178.98,0.06]
[1755639039183,46.67810357,179.0,178.98,0.06]
[1755639039383,0.71,178.99,178.98,0.06]
[1755639041786,7.86810357,178.99,178.98,0.06]
[1755639044692,138.86810357,178.99,178.98,0.06]
[1755639047698,138.86810357,178.99,178.98,0.75]
[1755639047699,170.52,178.99,178.98,0.75]
[1755639048018,131.0,178.99,178.98,0.75]
[1755639048691,131.0,178.99,178.98,7.90810357]
[1755639048900,131.71,179.07,178.99,13.59559401]
[1755639049215,39.52,179.07,179.04,7.15810357]
[1755639049394,39.52,179.07,179.03,7.15810357]
[1755639049594,40.23,179.07,179.03,7.15810357]
[1755639049917,39.52,179.07,179.04,7.84810357]
[1755639050295,39.52,179.07,179.04,0.69]
[1755639051522,39.52,179.07,179.04,7.84810357]
[1755639052418,39.52,179.07,179.05,0.69]
[1755639052633,39.52,179.07,179.04,7.15810357]
[1755639052809,39.52,179.07,179.06,0.69]
[1755639053526,39.52,179.07,179.04,0.69]
[1755639053739,39.52,179.07,179.04,7.84810357]
[1755639054035,39.52,179.07,179.04,0.69]
[1755639054632,40.23,179.07,179.02,7.84810357]
[1755639054933,40.23,179.07,179.03,0.69]
[1755639055906,39.52,179.07,179.03,0.69]
[1755639056224,0.71,179.06,179.03,0.69]
[1755639058014,133.95161144,179.14,179.03,20.75369758]
[1755639058208,133.95161144,179.14,179.04,7.84810357]
[1755639058209,7.15810357,179.1,179.04,7.84810357]
[1755639058611,0.71,179.09,179.04,7.84810357]
[1755639058929,0.71,179.08,179.04,7.84810357]
[1755639059114,7.86810357,179.1,179.05,0.69]
[1755639059310,7.15810357,179.1,179.05,0.69]
[1755639059515,0.71,179.09,179.05,0.69]
[1755639060160,7.15810357,179.1,179.05,0.69]
[1755639060366,0.71,179.08,179.05,0.69]
[1755639061454,7.15810357,179.1,179.05,0.69]
[1755639061641,0.71,179.1,179.06,0.69]
[1755639061847,7.86810357,179.1,179.04,7.84810357]
[1755639062048,0.71,179.09,179.04,7.84810357]
[1755639062345,7.15810357,179.1,179.04,7.84810357]
[1755639062533,0.71,179.08,179.04,7.84810357]
[1755639062734,0.71,179.08,179.05,0.69]
[1755639063457,0.71,179.07,179.02,7.84810357]
[1755639063769,0.71,179.06,179.02,0.69]
[1755639065643,0.66,179.05,179.02,0.69]
[1755639066299,0.66,179.05,179.0,21.44369758]
[1755639066468,7.15810357,179.05,179.0,7.84810357]
[1755639066634,0.66,179.04,179.0,7.84810357]
[1755639066830,0.66,179.04,179.0,7.15810357]
[1755639067058,0.66,179.04,179.01,0.69]
[1755639067545,7.15810357,179.05,179.01,0.69]
[1755639067750,7.81810357,179.05,179.01,0.69]
[1755639069750,0.66,179.05,179.01,0.69]
[1755639071346,131.0,179.07,179.0,7.15810357]
[1755639071583,177.63810357,179.07,179.02,7.15810357]
[1755639071782,178.29810357,179.07,179.02,7.15810357]
[1755639072082,0.66,179.06,179.03,0.69]
[1755639073977,177.63810357,179.07,179.03,0.69]
[1755639074157,7.81810357,179.06,179.01,7.15810357]
[1755639074361,0.66,179.05,179.01,7.84810357]
[1755639074590,0.66,179.05,179.01,0.69]
[1755639076669,0.66,179.04,179.01,0.69]
[1755639077072,7.81810357,179.06,179.0,7.15810357]
[1755639077288,177.63810357,179.07,179.01,7.84810357]
[1755639077486,177.63810357,179.07,179.01,7.15810357]
[1755639077673,177.63810357,179.07,179.02,0.69]
[1755639078178,178.29810357,179.07,179.03,0.69]
[1755639078589,170.48,179.07,179.04,7.84810357]
[1755639078970,170.48,179.07,179.04,7.15810357]
[1755639079173,170.48,179.07,179.05,0.69]
[1755639081567,131.0,179.07,179.05,7.84810357]
[1755639081769,0.66,179.06,179.02,0.69]
[1755639081969,0.66,179.06,179.02,7.84810357]
[1755639082169,0.66,179.05,179.02,0.69]
[1755639082467,0.66,179.05,179.0,7.15810357]
[1755639082468,7.81810357,179.04,178.99,7.21810357]
[1755639082689,7.81810357,179.04,178.99,7.90810357]
[1755639082690,0.66,179.03,178.99,7.90810357]
[1755639083966,0.66,179.02,178.99,0.06]
[1755639084190,7.15810357,179.01,178.99,0.06]
[1755639084670,7.81810357,179.01,178.99,0.06]
[1755639085069,39.48,179.03,178.99,0.06]
[1755639085271,39.48,179.03,179.0,0.69]
[1755639086584,40.14,179.03,179.0,0.69]
[1755639089471,7.15810357,179.02,178.99,0.06]
[1755639089695,7.15810357,179.01,178.99,0.06]
[1755639089908,7.15810357,179.0,178.99,0.06]
[1755639090275,7.81810357,179.0,178.99,0.06]
[1755639090497,0.66,179.0,178.99,0.06]
[1755639091291,7.81810357,179.0,178.99,0.06]
[1755639092415,11.58136828,179.0,178.99,0.06]
[1755639096319,4.42326471,179.0,178.99,0.06]
[1755639096522,11.58136828,179.0,178.99,0.06]
[1755639098928,3.76326471,179.0,178.99,0.06]
[1755639099109,4.45326471,179.0,178.99,0.06]
[1755639100806,0.69,179.0,178.99,0.06]
[1755639102318,39.48,179.01,178.99,0.06]
[1755639102622,39.48,179.01,178.99,0.75]
[1755639103121,39.48,179.01,178.99,0.06]
[1755639104117,39.48,179.01,178.99,0.75]
[1755639105610,39.48,179.01,178.99,7.21810357]
[1755639105798,39.48,179.01,179.0,0.69]
[1755639105996,40.15,179.03,179.0,0.69]